fUSD/lending_fUSD_20240122
["ID","MTS","AMOUNT","RATE_DAILY","PERIOD"]
[312464136,1705906245475,-220.410325,0.00036723,7]
[312464137,1705906245484,-151.0,0.00036723,7]
[312464138,1705906245493,-151.0,0.00036723,7]
[312464139,1705906245502,-226.504585,0.00036723,7]
[312464140,1705906245510,-226.504585,0.00036723,7]
[312464141,1705906245519,-151.0,0.00036723,7]
[312464142,1705906245530,-555.29,0.000368,7]
[312464143,1705906245539,-1300.0,0.000368,13]
[312464144,1705906245548,-1000.0,0.000368,11]
[312464145,1705906245557,-150.0,0.00036806,4]
[312464146,1705906245566,-450.0,0.00036806,2]
[312464147,1705906245575,-163.610833,0.00036806,7]
[312464148,1705906245584,-151.0,0.00036815,7]
[312464149,1705906245593,-151.0,0.00036815,7]
[312464150,1705906245603,-226.504585,0.00036815,7]
[312464151,1705906245611,-226.504585,0.00036815,7]
[312464152,1705906245620,-228.40315,0.00036815,7]
[312464153,1705906245629,-188518.76155276,0.00036815,7]
[312464154,1705906245657,-4741.90539651,0.00036815,7]
[312464164,1705906246086,-1000.0,0.00036815,7]
[312464165,1705906246108,-856.5629002,0.00036815,7]
[312464166,1705906246134,-1000.0,0.00036815,7]
[312464167,1705906246145,-1154.62306119,0.00036815,7]
[312464168,1705906246198,-540.61947536,0.00036815,7]
[312464175,1705906246260,-6664.42190913,0.00036815,7]
[312464176,1705906445466,499.999999,0.0002,2]
[312464194,1705907088436,3567.2159805,0.000302,120]
[312464195,1705907177360,9580.8748575,0.000303,100]
[312464241,1705907437976,-201.01274433,0.00022898,2]
[312464242,1705907437986,-333.27834163,0.00022998,2]
[312464243,1705907437995,-223.16656548,0.00022998,2]
[312464244,1705907438005,-471.324,0.00022998,2]
[312464245,1705907438014,-150.0,0.00022999,2]
[312464246,1705907438023,-6637.2957294,0.00023,2]
[312464247,1705907438035,-1857.66139216,0.00023,2]
[312464248,1705907438059,-1085.41820824,0.00023,2]
[312464249,1705907438070,-783.45476951,0.00023,2]
[312464250,1705907438102,-2891.17880614,0.00023,2]
[312464251,1705907438151,-38623.30678326,0.00023,2]
[312464252,1705907438210,-270.41940495,0.00023,2]
[312464253,1705907438219,-150.0,0.000235,2]
[312464254,1705907438229,-201.27157051,0.00024,2]
[312464255,1705907438238,-2380.41770451,0.000244,2]
[312464256,1705907438267,-638.24848553,0.000244,2]
[312464257,1705907438278,-680.31421281,0.000244,2]
[312464344,1705907440523,-1065.98081453,0.000244,2]
[312464345,1705907440535,-563.36498808,0.000244,2]
[312464346,1705907440586,-804.29,0.000244,2]
[312464347,1705907440710,-271.33310921,0.000244,2]
[312464348,1705907443430,-1032.3953998,0.000244,2]
[312464349,1705907443458,-22283.70088553,0.000244,2]
[312464350,1705907443467,-803.0798,0.000245,2]
[312464351,1705907443477,-32920.0,0.000246,2]
[312464352,1705907443486,-3099.0,0.000246,2]
[312464353,1705907443495,-350.0,0.00025,3]
[312464354,1705907443504,-167.43304946,0.00025,2]
[312464355,1705907443514,-303.55478187,0.00025,2]
[312464356,1705907443523,-1584.56156338,0.00025,2]
[312464357,1705907443533,-202.08717836,0.00025,2]
[312464358,1705907443543,-933.94016922,0.00025,2]
[312464359,1705907443552,-153.18566394,0.00026993,2]
[312464360,1705907443561,-400.0,0.00027,3]
[312464361,1705907443571,-1968.76111043,0.00027,3]
[312464362,1705907443580,-1361.904,0.00027093,2]
[312464363,1705907443589,-2459.797,0.00027093,2]
[312464364,1705907443599,-460.039,0.00027093,2]
[312464365,1705907443608,-305.876,0.00027093,2]
[312464366,1705907443617,-835.0,0.00027093,2]
[312464367,1705907443627,-945.0,0.00027093,2]
[312464368,1705907443636,-1853.0,0.00027093,2]
[312464369,1705907443645,-1234.0,0.00027093,2]
[312464370,1705907443655,-214.0,0.00027093,2]
[312464371,1705907443664,-996.0,0.00027093,2]
[312464372,1705907443673,-1933.0,0.00027093,2]
[312464373,1705907443682,-593.0,0.00027093,2]
[312464374,1705907443691,-426.0,0.00027093,2]
[312464375,1705907443701,-508.0,0.00027093,2]
[312464376,1705907443710,-235.0,0.00027093,2]
[312464377,1705907443719,-8115.302,0.00027093,2]
[312464378,1705907443731,-7371.504,0.00027093,2]
[312464379,1705907443741,-19804.419,0.00027093,2]
[312464380,1705907443751,-5575.0,0.00027093,2]
[312464381,1705907443765,-2282.792,0.00027093,2]
[312464382,1705907443775,-4173.0,0.00027093,2]
[312464383,1705907443785,-2904.0,0.00027093,2]
[312464384,1705907443795,-1032.255,0.00027093,2]
[312464385,1705907443806,-187.89,0.00027093,2]
[312464386,1705907443815,-150.0,0.00027397,2]
[312464387,1705907443824,-398.46716508,0.00029,2]
[312464388,1705907443835,-155.0,0.0003,2]
[312464389,1705907443845,-3000.0,0.0003,2]
[312464390,1705907443857,-3000.0,0.0003001,2]
[312464391,1705907444089,-5932.004961,0.0003002,2]
[312464392,1705907444103,-19999.99,0.0003062,2]
[312464393,1705907444112,-276.15,0.00031064,2]
[312464394,1705907444121,-519.39021724,0.000318,2]
[312464395,1705907444130,-258.55,0.00032981,2]
[312464396,1705907444139,-617.73,0.00032981,2]
[312464397,1705907444149,-5000.0,0.00033,10]
[312464398,1705907444158,-177.01,0.00033039,2]
[312464399,1705907444167,-2000.0,0.00033111,2]
[312464400,1705907444176,-260.88,0.00033254,15]
[312464401,1705907444185,-173.04,0.00033256,2]
[312464402,1705907444194,-186.48,0.00033256,2]
[312464403,1705907444203,-276.15,0.00033327,2]
[312464404,1705907444212,-250.0,0.00033643,111]
[312464405,1705907444221,-9694.55793567,0.00033692,2]
[312464406,1705907444236,-11691.02206433,0.00033692,2]
[312464407,1705907444247,-250.0,0.00033692,2]
[312464408,1705907444255,-500.0,0.00033808,2]
[312464409,1705907444265,-200.0,0.00033953,2]
[312464410,1705907444274,-500.0,0.00034,2]
[312464411,1705907444283,-1000.0,0.00034,4]
[312464412,1705907444293,-175.4,0.00034307,2]
[312464413,1705907444302,-294.59,0.00034408,2]
[312464414,1705907444311,-160.84,0.00034507,2]
[312464415,1705907444320,-258.55,0.00034625,2]
[312464416,1705907444329,-206.0,0.00034685,2]
[312464417,1705907444338,-173.04,0.00034919,2]
[312464418,1705907444347,-152.17204998,0.00034974,2]
[312464419,1705907444358,-1563.0,0.00035,2]
[312464420,1705907444367,-16458.70979912,0.00035,2]
[312464421,1705907444376,-3000.0,0.00035,11]
[312464422,1705907444385,-164.0,0.00035,2]
[312464423,1705907444394,-164.0,0.00035,2]
[312464424,1705907444404,-3000.0,0.0003501,11]
[312464425,1705907444413,-5495.68539,0.0003502,11]
[312464426,1705907444422,-276.15,0.00035591,2]
[312464427,1705907444431,-152.82,0.000358,3]
[312464428,1705907444440,-152.82,0.000358,3]
[312464429,1705907444450,-152.82,0.000358,3]
[312464430,1705907444459,-152.82,0.000358,3]
[312464431,1705907444469,-152.82,0.000358,3]
[312464432,1705907444479,-152.82,0.000358,3]
[312464433,1705907444488,-152.82,0.000358,3]
[312464434,1705907444498,-152.82,0.000358,3]
[312464435,1705907444507,-152.82,0.000358,3]
[312464436,1705907444516,-152.82,0.000358,3]
[312464437,1705907444525,-250.0,0.0003583,2]
[312464438,1705907444535,-5000.0,0.00036,3]
[312464439,1705907444544,-151.0122,0.00036048,8]
[312464440,1705907444553,-250.0,0.00036104,2]
[312464441,1705907444562,-180.0,0.00036142,2]
[312464442,1705907444572,-151.0122,0.00036148,6]
[312464443,1705907444581,-151.0122,0.00036248,8]
[312464444,1705907444590,-258.55,0.00036269,2]
[312464445,1705907444600,-171.23,0.00036279,2]
[312464446,1705907444609,-201.735871,0.00036299,10]
[312464447,1705907444618,-201.0122,0.00036348,6]
[312464448,1705907444627,-465.24189115,0.00036378,2]
[312464449,1705907444636,-169.79739,0.0003644,2]
[312464450,1705907444645,-201.0122,0.00036448,8]
[312464451,1705907444654,-500.0,0.0003645,2]
[312464452,1705907444662,-500.0,0.0003647,2]
[312464453,1705907444671,-200.0,0.0003647,2]
[312464454,1705907444681,-200.0,0.0003647,10]
[312464455,1705907444690,-800.0,0.0003647,10]
[312464456,1705907444699,-500.0,0.00036491,2]
[312464457,1705907444707,-151.17,0.00036499,2]
[312464458,1705907444717,-150.0,0.00036499,2]
[312464459,1705907444730,-150.0,0.00036499,2]
[312464460,1705907444740,-150.0,0.00036499,2]
[312464461,1705907444749,-150.0,0.00036499,2]
[312464462,1705907444760,-155.13,0.00036499,2]
[312464463,1705907444770,-500.0,0.00036511,2]
[312464464,1705907444779,-500.0,0.00036511,2]
[312464465,1705907444789,-201.0122,0.00036548,6]
[312464466,1705907444798,-1500.0,0.00036549,2]
[312464467,1705907444806,-150.0,0.00036559,2]
[312464468,1705907444816,-173.04,0.00036581,2]
[312464469,1705907444825,-150.0,0.00036587,2]
[312464470,1705907444834,-1500.0,0.0003664,2]
[312464471,1705907444843,-150.0,0.0003664,2]
[312464472,1705907444853,-201.0122,0.00036648,8]
[312464473,1705907444862,-150.0,0.00036652,2]
[312464474,1705907444871,-3000.0,0.000367,5]
[312464475,1705907444880,-400.0,0.000367,13]
[312464476,1705907444892,-503.1163,0.00036715,4]
[312464477,1705907444901,-241.47342646,0.00036718,9]
[312464478,1705907444910,-154.25893474,0.00036719,2]
[312464479,1705907444919,-198.29067422,0.00036719,9]
[312464480,1705907444928,-3607.65460099,0.00036727,9]
[312464481,1705907444938,-195.61051978,0.00036727,7]
[312464482,1705907444946,-590.93041062,0.00036727,2]
[312464483,1705907444956,-150.0,0.00036729,2]
[312464484,1705907444965,-150.0,0.00036765,2]
[312464485,1705907444974,-150.0,0.00036777,2]
[312464486,1705907444982,-150.0,0.00036783,2]
[312464487,1705907444991,-300.0,0.000368,11]
[312464488,1705907445000,-305.982165,0.000368,5]
[312464489,1705907445009,-565.2370504,0.000368,5]
[312464490,1705907445018,-800.0,0.000368,13]
[312464491,1705907445026,-1000.0,0.000368,11]
[312464492,1705907445035,-150.0,0.000368,11]
[312464493,1705907445045,-150.72940828,0.00036805,2]
[312464494,1705907445054,-58620.63733762,0.0003681,10]
[312464495,1705907445063,-188.5,0.0003681,2]
[312464496,1705907445073,-151.0,0.00036811,7]
[312464497,1705907445082,-156.12277865,0.00036813,4]
[312464498,1705907445091,-1043.21340546,0.00036813,4]
[312464499,1705907445100,-2018.96995483,0.00036813,4]
[312464500,1705907445109,-1054.41503558,0.00036813,4]
[312464501,1705907445118,-941.41772909,0.00036813,4]
[312464502,1705907445127,-390.44524197,0.00036813,4]
[312464503,1705907445136,-249.34126284,0.00036813,4]
[312464504,1705907445145,-278.73030459,0.00036813,2]
[312464505,1705907445154,-212.70302285,0.00036813,4]
[312464506,1705907445163,-155.0,0.00036813,2]
[312464507,1705907445172,-656.94361667,0.00036813,4]
[312464508,1705907445181,-155.0,0.00036813,4]
[312464509,1705907445190,-1647.27407841,0.00036813,4]
[312464510,1705907445200,-702.12614224,0.00036814,4]
[312464511,1705907445209,-5394.40903155,0.00036814,2]
[312464512,1705907445218,-4000.0,0.00036815,2]
[312464513,1705907445227,-181.71064084,0.00036817,2]
[312464514,1705907445236,-727.0,0.00036818,5]
[312464515,1705907445246,-151.0,0.00036827,7]
[312464516,1705907445255,-151.0,0.00036827,7]
[312464517,1705907445264,-151.0,0.00036827,7]
[312464518,1705907445274,-2901.06943084,0.00036827,2]
[312464519,1705907445283,-339.500183,0.00036827,7]
[312464520,1705907445292,-339.500183,0.00036827,7]
[312464521,1705907445302,-339.500183,0.00036827,7]
[312464522,1705907445311,-339.500183,0.00036827,7]
[312464523,1705907445320,-339.500183,0.00036827,7]
[312464524,1705907445330,-339.500183,0.00036827,7]
[312464525,1705907445339,-216.772095,0.00036827,7]
[312464526,1705907445349,-151.0,0.00036827,7]
[312464527,1705907445359,-151.0,0.00036827,7]
[312464528,1705907445368,-151.0,0.00036827,7]
[312464529,1705907445377,-151.0,0.00036827,7]
[312464530,1705907445386,-151.0,0.00036827,7]
[312464531,1705907445395,-151.0,0.00036827,7]
[312464532,1705907445405,-151.0,0.00036827,7]
[312464533,1705907445414,-151.0,0.00036827,7]
[312464534,1705907445423,-151.0,0.00036827,7]
[312464535,1705907445433,-500.0,0.00036827,2]
[312464536,1705907445443,-1304.2695,0.00036827,7]
[312464537,1705907445454,-164.48550142,0.00036827,5]
[312464538,1705907445463,-266.18859015,0.00036827,120]
[312464539,1705907445473,-1496.23113574,0.00036827,60]
[312464540,1705907445482,-153.02334939,0.00036827,30]
[312464541,1705907445491,-155.79851831,0.00036827,30]
[312464542,1705907445501,-156.92438494,0.00036827,120]
[312464543,1705907445511,-1657.10363441,0.00036827,120]
[312464544,1705907445520,-393.45181704,0.00036827,7]
[312464545,1705907445529,-307.75900624,0.00036827,30]
[312464546,1705907445538,-2000.0,0.00036827,2]
[312464547,1705907445548,-290000.0,0.00036827,30]
[312464548,1705907445557,-902478.49643196,0.00036827,30]
[312464549,1705907446230,-256.974,0.00036827,30]
[312464550,1705907446274,-1312.43827953,0.00036827,30]
[312464551,1705907446289,-966.041015,0.00036827,30]
[312464552,1705907446304,-608.1639215,0.00036827,30]
[312464553,1705907446319,-688.56235155,0.00036827,30]
[312464554,1705907446331,-748.77934784,0.00036827,30]
[312464577,1705907447398,-151.0,0.00036827,7]
[312464578,1705907447408,-151.0,0.00036827,7]
[312464579,1705907447418,-6362.44409253,0.00036827,30]
[312464580,1705907447454,-394.00545416,0.00036827,30]
[312464581,1705907447470,-151.0,0.00036827,7]
[312464582,1705907447480,-857.0,0.00036827,30]
[312464584,1705907782835,269.5659002,0.000303,100]
[312464585,1705908157637,-150.0,0.00022183,2]
[312464614,1705908632224,-754.22583188,0.000219,2]
[312464615,1705908632234,-150.0,0.00022183,2]
[312464616,1705908632243,-2782.61053922,0.00022183,2]
[312464617,1705908632252,-1597.76036415,0.00022184,2]
[312464618,1705908632263,-270.98804803,0.00022184,2]
[312464619,1705908632284,-546.06149217,0.00022184,2]
[312464620,1705908632296,-431.18512968,0.00022184,2]
[312464621,1705908632315,-832.48880502,0.00022184,2]
[312464622,1705908632327,-879.76098058,0.00022184,2]
[312464623,1705908632339,-559.71247832,0.00022184,2]
[312464624,1705908632354,-299.99,0.00022184,2]
[312464625,1705908632365,-1126.09699632,0.00022184,2]
[312464626,1705908632398,-341.78195328,0.00022184,2]
[312464627,1705908632454,-502.88675972,0.00022184,2]
[312464654,1705908638242,-645.53658735,0.00022184,2]
[312464655,1705908638353,-3355.883,0.00022184,2]
[312464656,1705908638364,-6237.00356573,0.00022184,2]
[312464657,1705908638465,-731.0,0.00022184,2]
[312464658,1705908638477,-2461.16702176,0.00022184,2]
[312464659,1705908638488,-452.45661718,0.00022184,2]
[312464660,1705908638529,-7136.32624708,0.00022184,2]
[312464662,1705908638539,-210.0,0.00024401,2]
[312464664,1705908638549,-3089.0,0.000247,2]
[312464665,1705908638558,-32620.0,0.000247,2]
[312464666,1705908638568,-1540.36607756,0.000247,2]
[312464667,1705908638577,-1387.96118204,0.00024998,2]
[312464720,1705908640670,-151.36225724,0.00024998,2]
[312464721,1705908640679,-241.19299944,0.00024999,2]
[312464722,1705908640689,-155.73201383,0.00024999,2]
[312464723,1705908640699,-350.0,0.00025,3]
[312464724,1705908640708,-262.57,0.00025,2]
[312464725,1705908640718,-294.44,0.000257,2]
[312464726,1705908640727,-9664.96863943,0.00026993,2]
[312464727,1705908640739,-54198.18746057,0.00026993,2]
[312464728,1705908640749,-299.5784,0.00026993,2]
[312464729,1705908640758,-150.0,0.00027397,2]
[312464730,1705908640768,-155.0,0.0003,2]
[312464731,1705908640777,-214.71239764,0.000303,2]
[312464732,1705908640786,-205.0,0.00030685,2]
[312464733,1705908640795,-266.68,0.00031467,2]
[312464734,1705908640805,-1000.0,0.00033321,7]
[312464735,1705908640814,-368.03,0.00033325,2]
[312464736,1705908640823,-250.0,0.00033394,111]
[312464737,1705908640833,-1852.42,0.00033394,2]
[312464738,1705908640842,-239.14,0.00033441,15]
[312464739,1705908640851,-250.0,0.00033452,2]
[312464740,1705908640861,-23880.0,0.00033516,2]
[312464741,1705908640871,-250.0,0.00033608,2]
[312464742,1705908640880,-205.0,0.00033617,7]
[312464743,1705908640889,-196.92,0.00033624,2]
[312464744,1705908640898,-2705.0,0.00033637,2]
[312464745,1705908640907,-460.63,0.00033667,2]
[312464746,1705908640916,-266.68,0.00033731,2]
[312464747,1705908640925,-160.84,0.00033851,2]
[312464748,1705908640934,-6713.8,0.00033946,2]
[312464749,1705908640943,-500.0,0.00034,2]
[312464750,1705908640952,-1000.0,0.00034,4]
[312464751,1705908640961,-2000.0,0.00034358,2]
[312464752,1705908640970,-467.89,0.00034369,2]
[312464753,1705908640979,-200.0,0.00034369,2]
[312464754,1705908640988,-150.0,0.00034375,2]
[312464755,1705908640997,-500.0,0.00034386,2]
[312464756,1705908641006,-637.56,0.00034406,2]
[312464757,1705908641015,-435.67,0.00034418,2]
[312464758,1705908641024,-293.14,0.00034444,2]
[312464759,1705908641033,-514.77,0.0003452,2]
[312464760,1705908641042,-551.35,0.00034663,2]
[312464761,1705908641051,-1272.43,0.00034681,2]
[312464762,1705908641060,-171.72,0.00034746,2]
[312464763,1705908641069,-368.03,0.00034969,2]
[312464764,1705908641078,-152.17204998,0.00034985,2]
[312464765,1705908641087,-150.0,0.00035,11]
[312464766,1705908641097,-150.0,0.00035014,7]
[312464767,1705908641107,-150.0,0.00035014,7]
[312464768,1705908641118,-150.0,0.00035014,7]
[312464769,1705908641133,-150.0,0.00035014,7]
[312464770,1705908641142,-150.0,0.00035014,7]
[312464771,1705908641151,-150.0,0.00035014,7]
[312464772,1705908641161,-150.0,0.00035014,7]
[312464773,1705908641169,-150.0,0.00035014,7]
[312464774,1705908641179,-150.0,0.00035014,7]
[312464775,1705908641187,-150.0,0.00035014,7]
[312464776,1705908641197,-150.0,0.00035014,7]
[312464777,1705908641206,-150.00000001,0.00035014,7]
[312464778,1705908641215,-171.72,0.00035199,2]
[312464779,1705908641225,-150.0,0.00035243,7]
[312464780,1705908641233,-160.89,0.00035253,2]
[312464781,1705908641242,-3190.67771766,0.00035352,2]
[312464782,1705908641251,-150.0,0.00035403,7]
[312464783,1705908641260,-150.0,0.00035471,7]
[312464784,1705908641269,-467.89,0.0003564,2]
[312464785,1705908641280,-171.72,0.00035651,2]
[312464786,1705908641290,-150.0,0.00035662,7]
[312464787,1705908641299,-150.0,0.000357,7]
[312464788,1705908641308,-150.0,0.00035792,7]
[312464789,1705908641317,-152.84,0.000358,3]
[312464790,1705908641326,-152.84,0.000358,3]
[312464791,1705908641335,-152.84,0.000358,3]
[312464792,1705908641344,-152.84,0.000358,3]
[312464793,1705908641353,-152.84,0.000358,3]
[312464794,1705908641362,-152.84,0.000358,3]
[312464795,1705908641371,-152.84,0.000358,3]
[312464796,1705908641380,-152.84,0.000358,3]
[312464797,1705908641389,-150.0,0.00035929,7]
[312464798,1705908641399,-266.68,0.00035995,2]
[312464799,1705908641407,-5000.0,0.00036,3]
[312464800,1705908641417,-151.0122,0.00036048,8]
[312464801,1705908641426,-1048.46841669,0.0003609,3]
[312464802,1705908641435,-171.72,0.00036104,2]
[312464803,1705908641444,-151.0122,0.00036148,6]
[312464804,1705908641453,-150.0,0.00036158,7]
[312464805,1705908641462,-150.0,0.00036181,7]
[312464806,1705908641472,-151.0122,0.00036248,8]
[312464807,1705908641481,-150.0,0.00036311,7]
[312464808,1705908641490,-150.0,0.00036311,7]
[312464809,1705908641499,-150.0,0.00036311,7]
[312464811,1705908641508,-150.0,0.00036311,7]
[312464813,1705908641517,-151.0122,0.00036348,6]
[312464814,1705908641527,-150.0,0.00036387,7]
[312464815,1705908641535,-274.8,0.00036402,2]
[312464817,1705908641763,-690.5564,0.00036448,7]
[312464818,1705908641787,-151.0122,0.00036448,8]
[312464819,1705908641797,-200.0,0.00036522,2]
[312464820,1705908641806,-200.0,0.00036522,10]
[312464821,1705908641815,-368.964403,0.00036522,10]
[312464822,1705908641824,-59599.3537,0.00036548,2]
[312464823,1705908641834,-151.0122,0.00036548,6]
[312464824,1705908641843,-205.0,0.00036548,13]
[312464825,1705908641852,-171.72,0.00036557,2]
[312464826,1705908641861,-150.0,0.0003657,7]
[312464827,1705908641871,-368.03,0.00036613,2]
[312464828,1705908641880,-150.0,0.00036616,7]
[312464829,1705908641889,-151.0122,0.00036648,8]
[312464830,1705908641899,-150.0,0.000367,5]
[312464831,1705908641908,-2248.1945823,0.00036723,8]
[312464832,1705908641917,-225.37519802,0.00036725,9]
[312464833,1705908641926,-503.37243297,0.00036736,2]
[312464834,1705908641936,-151.0122,0.00036748,6]
[312464835,1705908641945,-305.982165,0.000368,5]
[312464836,1705908641953,-452.1896404,0.000368,5]
[312464837,1705908641962,-1000.0,0.000368,11]
[312464838,1705908641971,-300.0,0.000368,11]
[312464839,1705908641980,-150.0,0.000368,11]
[312464840,1705908641989,-607.58187312,0.00036823,4]
[312464841,1705908641998,-1106.3153914,0.00036823,2]
[312464842,1705908642007,-1699.5481011,0.00036823,2]
[312464843,1705908642016,-163.1200597,0.00036823,2]
[312464844,1705908642025,-31749.5017947,0.00036823,2]
[312464845,1705908642034,-416.0072503,0.00036823,2]
[312464846,1705908642043,-10313.72732111,0.00036825,4]
[312464847,1705908642052,-3609.546437,0.00036825,2]
[312464848,1705908642061,-228.39192533,0.00036825,4]
[312464849,1705908642070,-155.45037873,0.00036825,4]
[312464850,1705908642079,-630.6668591,0.00036825,4]
[312464851,1705908642088,-155.86402743,0.00036825,4]
[312464852,1705908642097,-156.11859892,0.00036825,2]
[312464853,1705908642110,-195.9702857,0.00036825,4]
[312464854,1705908642119,-1376.57974956,0.00036825,4]
[312464855,1705908642128,-481.37146398,0.00036825,4]
[312464856,1705908642137,-156.08848529,0.00036825,4]
[312464857,1705908642146,-155.32259381,0.00036825,4]
[312464858,1705908642157,-320.93418675,0.00036825,2]
[312464859,1705908642167,-240.32585947,0.00036825,2]
[312464860,1705908642176,-155.59787761,0.00036825,4]
[312464861,1705908642185,-155.74910092,0.00036825,4]
[312464862,1705908642194,-455.69831598,0.00036825,4]
[312464863,1705908642204,-318.24086074,0.00036825,4]
[312464864,1705908642213,-178.94185082,0.00036825,4]
[312464865,1705908642223,-156.14956808,0.00036825,4]
[312464866,1705908642231,-202.94837059,0.00036825,4]
[312464867,1705908642241,-298.28728816,0.00036825,4]
[312464868,1705908642251,-1056.86295192,0.00036825,4]
[312464869,1705908642260,-387.1184404,0.00036825,4]
[312464870,1705908642269,-236.67607083,0.00036825,4]
[312464871,1705908642279,-245.18701553,0.00036825,4]
[312464872,1705908642288,-276.99718677,0.00036825,4]
[312464873,1705908642297,-158.00332996,0.00036825,4]
[312464874,1705908642306,-200.08002102,0.00036825,4]
[312464875,1705908642315,-847.54894066,0.00036825,2]
[312464876,1705908642325,-156.37611158,0.00036825,4]
[312464877,1705908642334,-156.2918762,0.00036825,4]
[312464878,1705908642343,-1048.50360929,0.00036825,2]
[312464879,1705908642353,-245.49014931,0.00036825,4]
[312464880,1705908642362,-2152.94004867,0.00036825,4]
[312464881,1705908642372,-157.12543495,0.00036825,4]
[312464882,1705908642381,-2633.97324505,0.00036825,2]
[312464883,1705908642390,-155.44390996,0.00036825,4]
[312464884,1705908642400,-652.57373136,0.00036825,4]
[312464885,1705908642409,-268.21558619,0.00036825,4]
[312464886,1705908642418,-246.99950823,0.00036825,4]
[312464887,1705908642427,-156.78738203,0.00036825,4]
[312464888,1705908642436,-190.39713529,0.00036825,4]
[312464889,1705908642446,-415.3614252,0.00036825,4]
[312464890,1705908642455,-232.94118767,0.00036825,4]
[312464891,1705908642464,-286.6896523,0.00036825,4]
[312464892,1705908642473,-220.43024859,0.00036825,4]
[312464893,1705908642482,-364.09538564,0.00036825,4]
[312464894,1705908642491,-361.73818308,0.00036825,4]
[312464895,1705908642500,-21869.7855327,0.00036825,4]
[312464896,1705908642528,-738.70204546,0.00036825,4]
[312464897,1705908642562,-2934.28598299,0.00036825,4]
[312464898,1705908642571,-940.75258403,0.00036825,4]
[312464899,1705908642581,-229.5508507,0.00036825,2]
[312464900,1705908642590,-1317.93249377,0.00036825,4]
[312464901,1705908642599,-170.30905286,0.00036825,4]
[312464902,1705908642609,-7093.56637198,0.00036825,2]
[312464903,1705908642623,-3328.19490743,0.00036825,2]
[312464904,1705908642633,-156.26192924,0.00036826,4]
[312464905,1705908642643,-156.57677682,0.00036826,4]
[312464906,1705908642654,-321.75335411,0.00036826,4]
[312464907,1705908642664,-3298.79475817,0.00036826,2]
[312464908,1705908642673,-169.79739,0.00036827,2]
[312464909,1705908642682,-255.25288042,0.00036828,4]
[312464910,1705908642692,-48034.99217454,0.00036829,30]
[312464911,1705908642703,-380.42818892,0.00036829,30]
[312464912,1705908642723,-2864.08439039,0.00036829,30]
[312464985,1705908643862,-1417.57609627,0.00036829,30]
[312464987,1705908643892,-3181.16338653,0.00036829,30]
[312464988,1705908644009,-526.2500001,0.00036829,30]
[312464989,1705908644024,-825.5013605,0.00036829,30]
[312464995,1705908646309,-299.12354907,0.00026992,2]
[312464997,1705908646322,-1724.41626984,0.00026992,2]
[312465006,1705908646763,-4638.02782269,0.00036829,30]
[312465007,1705908647356,-6389.90429568,0.00036829,30]
[312465008,1705908647411,-16383.0985078,0.00036829,30]
[312465009,1705908647423,-686.06888251,0.00036829,30]
[312465010,1705908647432,-3009.969945,0.00036829,30]
[312465011,1705908647443,-1122.99777499,0.00036829,30]
[312465012,1705908647543,-12889.81201576,0.00036829,30]
[312465013,1705908647555,-6472.69642325,0.00036829,30]
[312465014,1705908647566,-4687.90658067,0.00036829,30]
[312465015,1705908647578,-14895.02406016,0.00036829,30]
[312465016,1705908647589,-24324.56943024,0.00036829,30]
[312465017,1705908647600,-1363.58210176,0.00036829,30]
[312465018,1705908647611,-641.1100006,0.00036829,30]
[312465019,1705908647623,-5000.29407636,0.00036829,30]